[Event "Portuguese Team Blitz-ch 2022"]
[Site "Viseu"]
[Date "2022.06.12"]
[Round "1.7"]
[White "Paiva, Manuel Maria Fonseca"]
[Black "Ferreira, Luis Pedro"]
[Result "0-1"]
[ECO "C01"]
[WhiteElo "1453"]
[BlackElo "2183"]
[Annotator "TA"]
[PlyCount "63"]
[EventDate "2022.06.12"]
[EventType "team-tourn"]
[EventCountry "POR"]
[SourceTitle "playchess.com"]
[Source "ChessBase"]
[SourceQuality "1"]
[TimeControl "180+2"]

{[%evp 10,63,10,-14,-13,-16,46,0,23,18,24,-11,-7,-39,-48,-49,-52,-54,-31,-54,-52,-52,-26,-39,-39,-39,-37,-75,-30,-66,-5,-20,-20,-29,-37,-37,-37,-37,-37,-38,-42,-37,0,0,0,0,0,-10,-8,-31,-27,-27,-27,-68,-64,-1194]} 1. e4 {[%emt 0:00:03]} e6 {[%emt 0:00:01]} 2. d4 {[%emt 0:00:01]} d5 {[%emt 0:00:01]} 3. exd5 {[%emt 0:00:01]} exd5 {[%emt 0:00:01]} 4. Bd3 {[%emt 0:00:01]} c5 {[%emt 0:00:01]} 5. dxc5 {[%emt 0:00:03]} Bxc5 {[%emt 0:00:01]} 6. Ne2 {[%emt 0:00:01]} Nc6 {[%emt 0:00:04] C01: French: Exchange Variation.} 7. O-O {[%emt 0:00:01] [#]} Qh4 $146 {[%emt 0:00:02]} (7... Nf6 $11) ({Predecessor:} 7... Nf6 8. c3 h6 9. Nd2 O-O 10. Nb3 Bd6 11. Bf4 Re8 12. Bxd6 Qxd6 13. Ned4 a6 14. a4 Ne5 15. Be2 Bd7 16. Qd2 Rad8 17. Bd3 Ne4 18. Bxe4 dxe4 19. Nc2 Qg6 20. Ne3 Nf3+ {0-1 (20) Valle,L (2272)-Kanakaris,G (2382) Chess.com INT 2022}) 8. Ng3 {[%emt 0:00:14]} (8. Nd2 $14 {feels stronger.}) 8... Bg4 {[%emt 0:00:11] The position is equal.} 9. Qe1+ {[%emt 0:00:12]} Nge7 {[%emt 0:00:01]} 10. Nc3 {[%emt 0:00:04]} ({Don't play} 10. Nf5 Bxf5 11. Bxf5 O-O $17) (10. Be3 $5 {[%cal Re3c5]} b6 11. c3 $11) 10... O-O {[%emt 0:00:11]} 11. Qd2 {[%emt 0:00:32]} Ne5 {[%emt 0:00:35]} 12. Qg5 {[%emt 0:00:33]} Qxg5 {[%emt 0:00:08]} 13. Bxg5 {[%emt 0:00:01]} f6 {[%emt 0:00:06]} 14. Bd2 {[%emt 0:00:20]} Nxd3 {[%emt 0:00:06]} 15. cxd3 {[%emt 0:00:01]} Rad8 {[%emt 0:00:00]} 16. Rac1 {[%emt 0:00:08]} Nc6 {[%emt 0:00:04]} 17. h3 {[%emt 0:00:24]} Be6 {[%emt 0:00:08] This bishop pair is nice.} 18. Nge2 {[%emt 0:00:02]} Bf7 {[%emt 0:00:16] Black is more active.} 19. a3 {[%emt 0:00:01]} Nd4 {[%emt 0:00:06]} (19... Rfe8 $15 20. Rfe1 Bb6) 20. Nxd4 {[%emt 0:00:04]} Bxd4 {[%emt 0:00:01]} 21. Be3 {[%emt 0:00:07]} Bxe3 {[%emt 0:00:18]} 22. fxe3 {[%emt 0:00:01]} d4 {[%emt 0:00:01]} 23. exd4 {[%emt 0:00:16]} Rxd4 {[%emt 0:00:01]} 24. Nb5 {[%emt 0:00:05]} Rxd3 {[%emt 0:00:16]} 25. Nxa7 {[%emt 0:00:01]} Bd5 {[%emt 0:00:32]} 26. Rfd1 {[%emt 0:00:11]} Rxd1+ 27. Rxd1 $11 {KRB-KRN} Be4 {[%emt 0:00:03]} 28. Rc1 {[%emt 0:00:10]} Kf7 {[%emt 0:00:08]} 29. Nb5 {[%emt 0:00:06]} Rd8 {[%emt 0:00:03] Prevents Nd6+.} 30. Nc3 {[%emt 0:00:04]} Bc6 {[%emt 0:00:01] [#] And now ...Rd2 would win.} 31. Rd1 {[%emt 0:00:02] Against Rd2} Rxd1+ {[%emt 0:00:05]} 32. Kf2 $2 {[%emt 0:00:08][%mdl 8192] Weighted Error Value: White=0.16 (very precise) /Black=0.16 (very precise)} (32. Nxd1 $15 Ke6 33. Kf2) 0-1

[Event "Portuguese Team Blitz-ch 2022"]
[Site "Viseu"]
[Date "2022.06.12"]
[Round "1.8"]
[White "Leao, Tiago Miguel Da Silv"]
[Black "Neto, Dinis Fonseca"]
[Result "1-0"]
[ECO "A45"]
[WhiteElo "2157"]
[BlackElo "1202"]
[Annotator "TA"]
[PlyCount "65"]
[EventDate "2022.06.12"]
[EventType "team-tourn"]
[EventCountry "POR"]
[SourceTitle "playchess.com"]
[Source "ChessBase"]
[SourceQuality "1"]
[TimeControl "180+2"]

{[%evp 18,65,18,0,0,0,10,0,8,-9,16,13,21,-7,7,-8,460,474,464,469,459,462,677,441,649,450,450,427,674,681,664,654,872,697,964,928,1199,1193,1401,1137,1598,1476,29987,832,1294,1183,1301,1016,1145,779]} 1. d4 {[%emt 0:00:02]} Nf6 {[%emt 0:00:01]} 2. Bf4 {[%emt 0:00:06]} e6 {[%emt 0:00:01]} 3. e3 {[%emt 0:00:07]} d5 {[%emt 0:00:07]} 4. c3 Nbd7 {[%emt 0:00:09]} 5. Bd3 {[%emt 0:00:15]} Be7 {[%emt 0:00:05]} 6. h3 {[%emt 0:00:11]} b6 {[%emt 0:00:02]} 7. Nf3 {[%emt 0:00:05]} Bb7 {[%emt 0:00:00]} 8. O-O {[%emt 0:00:02]} c5 {[%emt 0:00:03]} 9. Nbd2 {[%emt 0:00:08]} O-O {[%emt 0:00:07]} 10. Rc1 {[%emt 0:00:02]} Rc8 {[%emt 0:00:01] D02: 1 d4 d5 2 Nf3 sidelines, including 2...Nf6 3 g3 and 2...Nf6 3 Bf4.} 11. Qe2 {[%emt 0:00:01]} h6 {[%emt 0:00:20]} 12. Rfe1 {[%emt 0:00:15] [#]} Ne4 $146 {[%emt 0:00:35] The position is equal.} ({Predecessor:} 12... Re8 13. Ne5 Nxe5 14. Bxe5 Bd6 15. Nf3 Bxe5 16. Nxe5 Nd7 17. Bb5 Nxe5 18. Bxe8 Qxe8 19. dxe5 Qa4 20. e4 dxe4 21. Red1 c4 22. Qd2 {½-½ (22) Kanevski,V (1798)-Kleinschmidt,R (1916) Arendsee 2008}) 13. Nf1 {[%emt 0:00:22][%cal Bd2f1,Bf1g3,Bg3h5][%mdl 32]} Ndf6 {[%emt 0:00:14]} 14. Ne5 {[%emt 0:00:03]} Nd7 {[%emt 0:00:17]} 15. Ng4 {[%emt 0:00:37]} Ndf6 {[%emt 0:00:16]} 16. Ng3 {[%emt 0:00:11]} Nh5 $2 {[%emt 0:00:12][%mdl 8192] Black cannot hold the game after this.} 17. Nxh5 $18 {[%emt 0:00:04]} f5 {[%emt 0:00:12]} 18. Ne5 {[%emt 0:00:04]} g5 {[%emt 0:00:06]} 19. Bh2 {[%emt 0:00:09]} Qe8 {[%emt 0:00:26]} (19... c4 $142 20. Bxe4 dxe4) 20. Ng3 {[%emt 0:00:05] [#] Black must now prevent Bb5.} Kh7 {[%emt 0:00:02]} (20... c4 $142 21. Bc2 Nf6) 21. Bxe4 {[%emt 0:00:19]} dxe4 {[%emt 0:00:02]} 22. Red1 {[%emt 0:00:18]} f4 {[%emt 0:00:01]} (22... Bd6 $142 23. Nh5 c4) 23. exf4 {[%emt 0:00:05]} gxf4 {[%emt 0:00:01]} 24. Nxe4 {[%emt 0:00:01] [#] Hoping for dxc5.} f3 {[%emt 0:00:05]} 25. Nxf3 {[%emt 0:00:06]} Bxe4 {[%emt 0:00:04]} 26. Qxe4+ {[%emt 0:00:01]} Kg8 {[%emt 0:00:03]} 27. Ne5 {[%emt 0:00:02]} Qh5 {[%emt 0:00:06]} 28. Rd3 {[%emt 0:00:03]} Bf6 {[%emt 0:00:03]} 29. Rg3+ {[%emt 0:00:01]} Kh8 {[%emt 0:00:05]} 30. Ng4 {[%emt 0:00:05]} (30. Ng6+ $142 Kg7 31. Nf4+ Qg5 32. Nxe6+ Kh8 33. Rxg5 hxg5 34. Qg6 Rce8 35. Nxf8) 30... Bg5 {[%emt 0:00:08] White is clearly winning.} 31. Re1 {[%emt 0:00:06]} Rce8 {[%emt 0:00:01]} 32. Qc6 {[%emt 0:00:02]} Kh7 {[%emt 0:00:05]} 33. Rxe6 {[%emt 0:00:01] Weighted Error Value: White=0.48/Black=1.40} 1-0

[Event "Portuguese Team Blitz-ch 2022"]
[Site "Viseu"]
[Date "2022.06.12"]
[Round "2.1"]
[White "Silva, Stephane"]
[Black "Veiga, Jose Francisco R P N"]
[Result "1/2-1/2"]
[ECO "C47"]
[WhiteElo "2020"]
[BlackElo "2377"]
[Annotator "TA"]
[PlyCount "151"]
[EventDate "2022.06.12"]
[EventType "team-tourn"]
[EventCountry "POR"]
[SourceTitle "playchess.com"]
[Source "ChessBase"]
[SourceQuality "1"]
[TimeControl "180+2"]

{[%evp 17,151,7,8,0,0,-3,-3,0,4,14,19,17,33,12,11,0,29,-41,-38,-27,-14,-13,-12,-10,-2,-21,-14,-32,-26,-28,0,-59,-65,-61,-61,-66,-41,-41,-23,-72,-41,-87,-70,-68,-72,-131,-149,-132,-108,-130,-110,-125,-84,-68,-20,-62,-22,-27,-8,-8,-8,-8,0,-8,0,0,0,0,0,0,0,0,0,0,0,-138,-100,-108,-80,-393,-236,-815,-719,-658,-615,-446,-437,-477,-387,-994,-989,-979,-949,-710,-864,-657,-613,-1610,-1610,-1585,-1515,-1466,-997,-1623,-1623,-1533,-1294,-1158,-707,-535,0,-568,0,0,-11,-1513,-1478,-1409,-1402,-683,0,0,0,0,0,0,0,0,0,0,0,-71,0,0,0,0]} 1. e4 {[%emt 0:00:01]} e5 {[%emt 0:00:01]} 2. Nf3 {[%emt 0:00:01]} Nc6 {[%emt 0:00:01]} 3. Nc3 {[%emt 0:00:01]} Nf6 {[%emt 0:00:05]} 4. d4 {[%emt 0:00:01]} exd4 {[%emt 0:00:02]} 5. Nxd4 {[%emt 0:00:01]} Bb4 {[%emt 0:00:01]} 6. Nxc6 {[%emt 0:00:03]} bxc6 {[%emt 0:00:02]} 7. Bd3 {[%emt 0:00:01]} d5 {[%emt 0:00:01]} 8. exd5 {[%emt 0:00:01]} O-O {[%emt 0:00:02] now supersedes 8...cxd5.} 9. O-O {[%emt 0:00:01]} cxd5 {[%emt 0:00:01]} 10. h3 {[%emt 0:00:03] Inhibits Bg4. C47: Scotch Four Knights and Four Knights with 4 g3.} c6 {[%emt 0:00:02]} 11. Qf3 {[%emt 0:00:01]} Bd6 {[%emt 0:00:03]} 12. Bf4 {[%emt 0:00:01]} Rb8 {[%emt 0:00:06]} 13. b3 {[%emt 0:00:12]} Qc7 {[%emt 0:00:07]} 14. Ne2 {[%emt 0:00:05]} Re8 {[%emt 0:00:03]} 15. Bxd6 {[%emt 0:00:04]} Qxd6 {[%emt 0:00:01]} 16. c4 {[%emt 0:00:03]} d4 {[%emt 0:00:12]} 17. Qf4 {[%emt 0:00:19]} (17. c5 $1 $11 Qxc5 18. Rfd1) 17... Qxf4 $15 {[%emt 0:00:04]} 18. Nxf4 {[%emt 0:00:01]} c5 {[%emt 0:00:05]} (18... g5 $5 19. Ne2 c5 $11) 19. Rfe1 {[%emt 0:00:01]} Bb7 {[%emt 0:00:14]} 20. Bf1 {[%emt 0:00:15] [#]} Be4 $146 {[%emt 0:00:13]} ({Predecessor:} 20... Kf8 21. Nd3 Nd7 22. f3 a5 23. Rxe8+ Rxe8 24. a3 Ke7 25. b4 Kd6 26. Rd1 axb4 27. axb4 {1-0 (62) Ortiz Suarez,I (2585)-Espinosa Veloz,E (2452) Santa Clara 2013}) 21. Bd3 {[%emt 0:00:05]} Bc6 {[%emt 0:00:17]} 22. Bf1 {[%emt 0:00:02]} Nd7 {[%emt 0:00:05][%cal Bf6d7,Bd7e5,Be5d3][%mdl 32]} 23. f3 {[%emt 0:00:03]} Ne5 {[%emt 0:00:07]} 24. Nd3 {[%emt 0:00:01]} (24. Nd5 $11) 24... Nxd3 $1 {[%emt 0:00:03]} 25. Bxd3 {[%emt 0:00:01]} f6 {[%emt 0:00:27]} 26. Kf2 {[%emt 0:00:01]} Kf7 {[%emt 0:00:04]} 27. Rxe8 {[%emt 0:00:22]} ({But not} 27. Bxh7 $2 g6 28. Rxe8 Rxe8 $19) 27... Rxe8 {[%emt 0:00:01][%mdl 4096] Endgame KRB-KRB} 28. Re1 {[%emt 0:00:02] Prevents Re3.} (28. a3 $1 $11) 28... Rb8 {[%emt 0:00:01]} 29. Be4 {[%emt 0:00:06]} ({Reject} 29. Bxh7 g6 30. h4 Rh8 31. Bxg6+ Kxg6 $17) (29. h4 $15) 29... Bxe4 $17 {[%emt 0:00:11]} 30. Rxe4 {[%emt 0:00:02] KR-KR} a5 {[%emt 0:00:01][%cal Ba7a5,Ba5a4][%mdl 32] White must now prevent ...a4!} 31. Re1 {[%emt 0:00:06]} (31. Rh4 $142) 31... a4 {[%emt 0:00:05]} 32. Rb1 {[%emt 0:00:01]} Ke6 {[%emt 0:00:16]} 33. Ke2 {[%emt 0:00:05]} Kd6 {[%emt 0:00:00]} 34. Kd2 {[%emt 0:00:02]} axb3 {[%emt 0:00:04]} 35. axb3 {[%emt 0:00:02]} Ra8 {[%emt 0:00:02]} (35... h5 $15) 36. Rb2 {[%emt 0:00:20]} Ra1 {[%emt 0:00:02]} 37. b4 {[%emt 0:00:01]} cxb4 {[%emt 0:00:21]} 38. Rxb4 {[%emt 0:00:08]} Kc5 {[%emt 0:00:00]} 39. Rb7 {[%emt 0:00:02]} Ra2+ {[%emt 0:00:06]} 40. Kd3 {[%emt 0:00:01]} Rxg2 {[%emt 0:00:14]} 41. Rc7+ {[%emt 0:00:02]} Kd6 {[%emt 0:00:03]} 42. Ra7 {[%emt 0:00:04]} Ke5 {[%emt 0:00:14]} 43. Re7+ {[%emt 0:00:06]} Kf4 {[%emt 0:00:01]} 44. Kxd4 {[%emt 0:00:01]} Kxf3 {[%emt 0:00:03]} 45. Re3+ {[%emt 0:00:04]} Kf4 {[%emt 0:00:09] ( -> ...Rd2+)} 46. Rc3 {[%emt 0:00:02]} (46. Re4+ $11 Kf5 47. Re7) 46... Rd2+ {[%emt 0:00:02]} 47. Kc5 {[%emt 0:00:01] [#]} Ke4 $1 {[%emt 0:00:02]} 48. Kb4 $2 {[%emt 0:00:04][%mdl 8192]} (48. Rc1 $17 {nothing else works.}) 48... Kd4 {[%emt 0:00:02]} 49. Rc1 $2 {[%emt 0:00:05]} (49. Kb3) 49... Rb2+ $19 {[%emt 0:00:02]} 50. Ka3 {[%emt 0:00:02]} Rb8 {[%emt 0:00:04]} 51. c5 {[%emt 0:00:01]} Kd5 {[%emt 0:00:00]} 52. c6 {[%emt 0:00:01]} Kd6 {[%emt 0:00:01]} 53. c7 $2 {[%emt 0:00:01]} (53. h4) 53... Rc8 {[%emt 0:00:00]} 54. Rd1+ {[%emt 0:00:03]} Kxc7 {[%emt 0:00:02]} 55. Kb3 {[%emt 0:00:01]} Rd8 {[%emt 0:00:02]} 56. Re1 {[%emt 0:00:03]} Rd7 {[%emt 0:00:04]} 57. Kc3 {[%emt 0:00:02]} Kd8 {[%emt 0:00:01]} 58. Re3 {[%emt 0:00:01]} g6 {[%emt 0:00:01]} 59. Re6 {[%emt 0:00:02]} f5 {[%emt 0:00:03]} 60. h4 {[%emt 0:00:01]} Re7 {[%emt 0:00:01]} 61. Rf6 {[%emt 0:00:02]} Ke8 {[%emt 0:00:01]} 62. h5 {[%emt 0:00:01]} Rf7 {[%emt 0:00:07]} 63. Re6+ {[%emt 0:00:02]} Re7 {[%emt 0:00:02]} 64. Rf6 {[%emt 0:00:01]} Rg7 $2 {[%emt 0:00:02]} ({Better is} 64... Rc7+ $19 65. Kd4 Ke7) 65. hxg6 $11 hxg6 {[%emt 0:00:01] Hoping for ...Ke7.} 66. Kd3 $2 {[%emt 0:00:03][%mdl 8192]} (66. Kd4 $11) 66... Ke7 $19 {[%emt 0:00:02]} 67. Ra6 {[%emt 0:00:02]} Kf7 {[%emt 0:00:01]} 68. Ke3 {[%emt 0:00:00]} Kg8 $2 {[%emt 0:00:00]} (68... g5 $19 {aiming for ...Rg8.} 69. Kd4 Rg6 70. Ra7+ Kf6) 69. Kf4 $11 {[%emt 0:00:01]} Kh7 {[%emt 0:00:06] ...Kh6 is the strong threat.} 70. Kg5 $1 {[%emt 0:00:01]} Rf7 {[%emt 0:00:06]} 71. Ra4 {[%emt 0:00:05]} Kg7 {[%emt 0:00:01]} 72. Rb4 {[%emt 0:00:02]} Kh7 {[%emt 0:00:02]} 73. Ra4 {[%emt 0:00:01]} Re7 {[%emt 0:00:02]} 74. Rb4 {[%emt 0:00:01] [#]} (74. Ra6 $11) 74... Re4 {[%emt 0:00:02]} (74... Re6 $1 $17) 75. Rb7+ {[%emt 0:00:02]} Kg8 {[%emt 0:00:03]} 76. Kxg6 {[%emt 0:00:01] Weighted Error Value: White=0.62/Black=0.13 (very precise)} 1/2-1/2

[Event "Portuguese Team Blitz-ch 2022"]
[Site "Viseu"]
[Date "2022.06.12"]
[Round "2.2"]
[White "Martins, Bruno Andre Leite"]
[Black "Ribeiro, Gustavo"]
[Result "1-0"]
[ECO "B54"]
[WhiteElo "2327"]
[BlackElo "1867"]
[Annotator "TA"]
[PlyCount "119"]
[EventDate "2022.06.12"]
[EventType "team-tourn"]
[EventCountry "POR"]
[SourceTitle "playchess.com"]
[Source "ChessBase"]
[SourceQuality "1"]
[TimeControl "180+2"]

{[%evp 21,119,27,37,24,61,54,72,73,79,71,134,122,120,121,135,121,229,217,334,325,320,246,327,332,308,308,369,321,366,338,354,347,354,343,661,653,765,624,2060,1883,2351,1065,1020,754,2294,2083,2010,1951,29983,1139,1126,1089,29989,6640,12815,12810,2343,1731,2198,1354,29963,6920,29984,1272,1212,961,12838,12839,12839,12839,6041,5932,12835,12834,5800,3228,12837,10920,29981,29982,29982,29983,29982,29982,29984,29985,29983,29984,29986,29987,29988,29987,29989,29990,29991,29992,29993,29993,29993,29994]} 1. e4 c5 2. Nf3 d6 3. d4 cxd4 4. Nxd4 g6 5. g3 Bg7 6. Bg2 Nc6 7. Ne2 Nf6 8. O-O O-O 9. Nbc3 Bg4 10. h3 Bd7 11. a4 Rc8 12. Nd5 {B70: Sicilian Dragon: 6 g3 and 6 Be2 (without a later Be3).} Nxd5 13. exd5 Ne5 14. Ra2 $1 {White is better.} Qc7 15. b3 f5 (15... Bf5 $142) 16. Re1 {[#]} Rfe8 $146 ({Predecessor:} 16... Rce8 17. Nd4 a6 18. c4 Nf7 19. Rae2 Bf6 20. Kh2 Kh8 21. Bb2 Kg8 22. f4 Rb8 {1-0 (29) Urjubdshzirov,E (2173)-Fazulyanov,S (2354) Moscow 2008}) 17. c4 a6 18. a5 Rb8 {[#]} (18... b6 $16) 19. Be3 $1 $18 Kh8 (19... Qc8 $142 20. Qd2 Nf7) 20. Bb6 Qc8 21. Nd4 Bf6 22. f4 Nf7 23. Rae2 Nd8 24. Kh2 Kg7 25. Bf3 Kf7 26. Kg2 h5 27. Re3 h4 $2 (27... Kg7 28. Kg1 Ra8) 28. g4 {[%cal Bg3g4,Bg4f5][%mdl 32]} g5 29. gxf5 {Hoping for Bh5+.} gxf4 30. Bh5+ Kg7 31. Re6 (31. Qg4+ $142 Kh8 32. Bxe8 Bxe8 33. Rxe7) 31... Nxe6 32. fxe6 ({Less strong is} 32. Nxe6+ Bxe6 33. Qg4+ Kh8 34. Rxe6 (34. Bxe8 Bxd5+ 35. cxd5 Qxe8 $11) 34... Rg8 $18) 32... Rh8 33. exd7 Qxd7 34. Ne6+ Kh6 35. Bg4 (35. Bf7 $142 Rbg8+ 36. Kh1 Rg5 37. Rg1 Qxe6 38. dxe6 Rhg8 39. Bxg8 Rg3 40. Rxg3) 35... Qe8 36. Bd4 {This bishop pair is nice.} Bg5 37. Bxh8 (37. Bg7+ $142 Kh7 38. Bf5+ Kg8 39. Bxh8 Qf7 40. Qg4 Kxh8 41. Nxg5 Qg7 42. Qh5+ Kg8 43. Be6+ Kf8 44. Kh1) 37... Qxh8 38. Nxg5 Kxg5 39. Rxe7 Qc3 40. Qf3 Qb2+ 41. Re2 Qd4 {[#]} 42. Qe4 (42. Bc8 $142 $1 {[%mdl 512]} Qf6 (42... Qg7 43. Kh2) 43. Qg4+ Kh6 44. Re6 f3+ 45. Qxf3 Qxe6 46. Bxe6 b5 47. Qf6+ Kh7 48. Kf3) 42... Qf6 43. Qe7 {aiming for Qxf6+.} Rf8 44. Qxf6+ Rxf6 {[%mdl 4096] Endgame KRB-KR} 45. Re6 {White wants to mate with Rxf6.} f3+ 46. Bxf3 Rf4 47. Rxd6 Rd4 48. Be2 {White threatens Kf3 and mate.} Rd2 49. Kf2 {Ke3 would kill now.} Rb2 50. Rb6 {White mates.} Kf4 51. d6 Rd2 52. c5 Rd4 53. Rxb7 Ke5 54. b4 Rf4+ 55. Ke3 Re4+ 56. Kd2 Rd4+ 57. Kc3 Re4 58. Bd3 Re3 59. Re7+ Kf4 60. Rxe3 {Black got outplayed after the opening.  Weighted Error Value: White=0.25 (precise) /Black=1.60} 1-0

[Event "Portuguese Team Blitz-ch 2022"]
[Site "Viseu"]
[Date "2022.06.12"]
[Round "2.3"]
[White "Carvalho, Vitor Hugo Pina Soar"]
[Black "Rego, Pedro Filipe"]
[Result "0-1"]
[ECO "B31"]
[WhiteElo "1818"]
[BlackElo "2251"]
[Annotator "TA"]
[PlyCount "72"]
[EventDate "2022.06.12"]
[EventType "team-tourn"]
[EventCountry "POR"]
[SourceTitle "playchess.com"]
[Source "ChessBase"]
[SourceQuality "1"]
[TimeControl "180+2"]

{[%evp 20,72,13,0,7,14,16,19,21,0,0,0,0,0,0,0,14,0,0,-18,-22,-22,0,0,40,3,3,-289,3,3,3,0,3,3,3,0,0,0,0,0,4,0,0,-143,-139,-167,-110,-231,-227,-257,-258,-260,-202,-1076,-1024]} 1. e4 {[%emt 0:00:01]} c5 {[%emt 0:00:01]} 2. Nf3 {[%emt 0:00:01]} Nc6 {[%emt 0:00:00]} 3. Bb5 {[%emt 0:00:01]} g6 {[%emt 0:00:01]} 4. O-O {[%emt 0:00:06]} Bg7 {[%emt 0:00:01]} 5. c3 {[%emt 0:00:01]} Nf6 {[%emt 0:00:01]} 6. Re1 {[%emt 0:00:01]} O-O {[%emt 0:00:03]} 7. d4 {[%emt 0:00:01]} d5 {[%emt 0:00:02]} 8. e5 {[%emt 0:00:08]} Ne4 {[%emt 0:00:02]} 9. Nbd2 {[%emt 0:00:04]} cxd4 {[%emt 0:00:07]} 10. cxd4 {[%emt 0:00:04]} Nxd2 {[%emt 0:00:04] 10...Qb6 is the modern continuation.} 11. Bxd2 {[%emt 0:00:04]} Qb6 {[%emt 0:00:01][%csl LRb5,LRd4] B31: Sicilian: 2...Nc6 3 Bb5 g6.} 12. Bxc6 {[%emt 0:00:11]} Qxc6 {[%emt 0:00:03]} 13. Rc1 {[%emt 0:00:07]} Qb6 {[%emt 0:00:04] [#] The position is equal.} 14. b3 $146 {[%emt 0:00:17]} ({Predecessor:} 14. Qb3 Bg4 15. Rc5 Qxb3 16. axb3 b6 17. Rc7 Rfc8 18. Rxe7 Bf8 19. Rb7 Rc2 20. Bc3 {1-0 (39) Trushelyov,V (2340)-Belous,V (2428) Moscow 2008}) 14... Bf5 {[%emt 0:00:11]} 15. Be3 {[%emt 0:00:12]} Rac8 {[%emt 0:00:06]} 16. Qd2 {[%emt 0:00:02]} Be4 {[%emt 0:00:14]} 17. Ng5 {[%emt 0:00:08]} Bf5 {[%emt 0:00:01]} 18. Nf3 {[%emt 0:00:03]} Bg4 {[%emt 0:00:18]} 19. h3 {[%emt 0:00:37]} Bxf3 {[%emt 0:00:04]} 20. gxf3 {[%emt 0:00:02][%cal Bg2f3,Bf3f4,Bf4e5][%mdl 32]} f6 {[%emt 0:00:06]} 21. f4 {[%emt 0:00:01]} fxe5 {[%emt 0:00:01]} 22. fxe5 {[%emt 0:00:05]} (22. dxe5 $5 {[%cal Re3b6]} Qe6 23. Rxc8 Rxc8 24. Bxa7 $14) 22... Qe6 {[%emt 0:00:06]} 23. Kh2 $2 {[%emt 0:00:09][%mdl 8192] [#]} (23. Kg2 $11 {and White has nothing to worry.}) 23... Qf5 $2 {[%emt 0:00:20]} (23... Rf3 $19 24. Rxc8+ Qxc8) 24. Qe2 {[%emt 0:00:06]} e6 {[%emt 0:00:51]} 25. Qg4 {[%emt 0:00:01]} Qf7 {[%emt 0:00:03]} 26. Rg1 $1 {[%emt 0:00:24]} Qd7 {[%emt 0:00:08]} 27. Kh1 {[%emt 0:00:16]} Rf5 {[%emt 0:00:01]} 28. Rxc8+ {[%emt 0:00:03]} Qxc8 {[%emt 0:00:01]} 29. Rc1 {[%emt 0:00:01]} Qd7 {[%emt 0:00:03]} 30. Kh2 {[%emt 0:00:06]} Bf8 {[%emt 0:00:02]} 31. Bg5 {[%emt 0:00:05]} (31. Qd1 $11 {remains equal.}) 31... Rxf2+ $17 {[%emt 0:00:07]} 32. Kg3 {[%emt 0:00:01]} Rf5 {[%emt 0:00:02]} ({Black should play} 32... Rxa2 $19 33. Rf1 Bg7) 33. Bf6 {[%emt 0:00:01]} (33. Be3 $17 {was called for.}) 33... Be7 $19 {[%emt 0:00:09]} 34. Bxe7 {[%emt 0:00:09]} Qxe7 {[%emt 0:00:02]} 35. Rc8+ {[%emt 0:00:01]} Kg7 {[%emt 0:00:01]} 36. Rc3 $2 {[%emt 0:00:06] [#]} (36. Kh2) 36... Rg5 {[%emt 0:00:02] Weighted Error Value: White=0.63/Black=0.25 (precise)} 0-1